bitfinex/quotes_ETHUSD_20260126
["timestamp","ask_amount","ask_price","bid_price","bid_amount"]
[1769386013275,0.001,2826.8,2825.9,0.88466928]
[1769386014131,0.001,2826.8,2825.8,0.0353882]
[1769386014473,3.8861819,2826.8,2825.4,0.88482958]
[1769386014771,3.8861819,2826.8,2825.7,0.88470862]
[1769386014976,0.001,2826.8,2825.8,0.88469192]
[1769386015261,0.001,2826.8,2825.9,0.44235128]
[1769386015663,0.001,2826.8,2826.0,0.0353857]
[1769386016175,0.001,2826.8,2826.0,0.13550549]
[1769386016334,3.8851819,2827.6,2826.1,0.8846113]
[1769386016535,4.27370009,2827.6,2826.2,0.4558562]
[1769386017633,5.1578504,2827.6,2826.2,0.4912394]
[1769386017838,5.1578504,2827.6,2826.2,0.4558562]
[1769386018071,0.38851819,2827.6,2826.3,4.15918848]
[1769386018253,4.24885467,2829.5,2826.2,0.4558562]
[1769386018254,3.8851819,2828.4,2826.5,5.04367459]
[1769386018564,3.8851819,2828.4,2826.7,0.10011979]
[1769386019453,4.76908912,2828.4,2826.7,0.10011979]
[1769386020159,3.8851819,2831.3,2829.5,0.28469364]
[1769386020478,0.11976739,2832.5,2830.2,0.10011979]
[1769386020479,4.76782559,2832.4,2830.2,0.10011979]
[1769386020636,4.76782559,2832.4,2829.8,0.10011979]
[1769386020637,3.8851819,2832.1,2829.8,0.10011979]
[1769386020838,3.8851819,2831.9,2829.8,1.30111677]
[1769386021067,3.8851819,2831.9,2829.9,0.10011979]
[1769386022071,3.8851819,2831.9,2830.5,0.10011979]
[1769386022247,0.8828307,2831.8,2830.5,0.10011979]
[1769386022434,0.8828307,2831.8,2829.5,0.18457385]
[1769386022435,4.6180126,2831.8,2829.5,0.18457385]
[1769386022643,3.8851819,2831.5,2829.5,0.18457385]
[1769386022869,3.8851819,2831.3,2829.5,0.18457385]
[1769386023168,3.8851819,2831.3,2828.9,0.10011979]
[1769386023468,3.78746765,2831.1,2828.1,10.0]
[1769386023650,3.78746765,2830.8,2828.8,0.88376489]
[1769386023852,3.78746765,2830.6,2828.6,0.88381795]
[1769386024071,3.78746765,2830.6,2828.6,0.88381371]
[1769386024259,3.78746765,2830.4,2828.6,0.88382945]
[1769386024769,3.78746765,2830.4,2828.8,0.10011979]
[1769386025176,0.88323617,2830.5,2828.8,0.10011979]
[1769386025341,0.44160827,2830.4,2828.5,0.10011979]
[1769386025541,0.44160827,2830.4,2828.5,0.98397125]
[1769386025542,4.22907592,2830.4,2828.5,0.98397125]
[1769386025767,4.22907592,2830.4,2828.5,0.9839765]
[1769386026141,0.44160827,2830.4,2829.1,0.10011979]
[1769386026341,1.26193267,2830.7,2829.2,0.88364201]
[1769386026773,1.26192152,2830.7,2829.1,0.98378603]
[1769386026942,1.26192152,2830.7,2829.1,0.98377789]
[1769386027142,1.26192152,2830.7,2829.1,0.10011979]
[1769386027446,5.04938917,2830.7,2829.1,0.10011979]
[1769386027773,4.64566439,2830.6,2828.9,0.88371991]
[1769386027944,4.64566439,2830.6,2828.9,0.88371436]
[1769386028269,0.88323617,2830.5,2828.9,0.88371573]
[1769386028575,0.88323617,2830.5,2828.5,10.10011979]
[1769386028576,4.67070382,2830.5,2827.9,0.80215507]
[1769386028740,4.67070382,2830.5,2827.2,3.913597]
[1769386028741,0.98383552,2828.8,2827.2,3.913597]
[1769386028946,3.78746765,2830.1,2827.7,3.913597]
[1769386029276,4.95620823,2830.2,2827.7,3.913597]
[1769386029277,0.87436759,2830.0,2828.2,31.476597]
[1769386029573,0.90618453,2830.4,2827.8,10.3913597]
[1769386029574,0.90618453,2830.4,2828.4,4.79747667]
[1769386029772,0.90618453,2830.4,2828.5,0.88383606]
[1769386029955,0.90618453,2830.4,2828.4,3.913597]
[1769386030155,0.90618453,2830.4,2828.2,0.88395326]
[1769386030358,0.88329859,2830.3,2828.1,0.88398571]
[1769386030556,0.53226775,2830.2,2828.2,0.51599811]
[1769386031179,0.53226775,2830.2,2828.2,4.42959511]
[1769386031395,0.53226775,2830.2,2828.6,3.913597]
[1769386031547,0.88328989,2830.4,2828.7,4.482]
[1769386031752,0.001,2830.5,2828.8,3.913597]
[1769386031962,0.88423903,2830.5,2828.9,3.913597]
[1769386032357,0.88423903,2830.5,2828.2,10.74956841]
[1769386032358,0.001,2830.5,2828.4,0.88389195]
[1769386033056,0.001,2830.5,2828.6,3.913597]
[1769386033371,0.001,2830.5,2828.7,7.3049567]
[1769386033583,0.001,2830.5,2828.9,3.913597]
[1769386033745,0.001,2830.5,2829.1,3.913597]
[1769386033946,0.001,2830.5,2829.1,4.653597]
[1769386034386,0.001,2830.5,2829.2,0.88364201]
[1769386035866,0.001,2830.5,2829.3,30.03534443]
[1769386036073,0.001,2830.5,2829.3,3.56474468]
[1769386036383,0.001,2830.5,2829.2,5.02395997]
[1769386036946,0.001,2830.5,2829.2,5.02395821]
[1769386037207,4.15335974,2830.4,2827.7,0.05]
[1769386037469,4.15335974,2830.4,2827.3,0.88421909]
[1769386037470,4.15335974,2829.6,2827.3,0.88421909]
[1769386037779,2.218,2828.8,2827.0,0.88432967]
[1769386037984,2.218,2828.5,2827.0,0.88432967]
[1769386038184,2.218,2828.6,2827.0,0.88432967]
[1769386038388,2.218,2828.8,2827.0,5.02464763]
[1769386038596,0.2218,2828.7,2827.1,0.85619663]
[1769386039179,0.88376723,2828.8,2827.1,0.85619663]
[1769386039490,0.88375773,2828.9,2827.1,0.85619663]
[1769386039910,0.151,2828.8,2827.1,0.85619663]
[1769386040385,0.151,2828.8,2827.2,0.88426711]
[1769386040599,0.128,2830.0,2827.6,4.14031796]
[1769386040790,0.151,2829.5,2827.7,3.4140318]
[1769386040987,0.151,2829.2,2827.6,4.14031796]
[1769386041155,0.151,2829.2,2827.3,0.002]
[1769386041759,5.4515092,2829.9,2827.3,0.002]
[1769386041760,0.151,2829.3,2827.5,4.14031796]
[1769386042377,0.151,2829.3,2827.6,0.88414202]
[1769386042583,0.151,2829.3,2827.7,0.85610281]
[1769386043189,0.88359725,2829.4,2827.7,0.85610281]
[1769386043570,0.151,2829.3,2827.7,0.85610281]
[1769386044390,0.88367325,2829.1,2827.6,0.88414202]
[1769386047090,5.03687684,2829.6,2827.6,0.88414202]
[1769386047293,0.151,2829.2,2827.6,5.02445998]
[1769386047594,7.68672934,2830.2,2827.6,5.02445998]
[1769386047595,0.151,2829.4,2827.8,4.14031796]
[1769386047898,0.151,2829.4,2828.0,4.14031796]
[1769386048070,0.88349221,2829.7,2828.0,4.14031796]
[1769386049071,7.68730326,2830.0,2828.0,0.88401697]
[1769386049273,0.151,2829.6,2828.0,0.88401697]
[1769386049986,0.151,2829.3,2828.0,0.88401697]
[1769386050188,4.15335974,2830.0,2827.9,3.95019346]
[1769386050189,0.151,2829.2,2827.9,1.29805944]
[1769386050384,0.151,2829.2,2827.9,1.29807417]
[1769386050590,0.151,2829.2,2827.8,0.88406379]
[1769386051309,0.88367325,2829.1,2827.6,3.53656039]
[1769386051505,0.88367325,2829.1,2827.6,0.88414202]
[1769386051678,0.151,2829.0,2827.6,0.88414202]
[1769386052186,0.151,2828.8,2827.6,0.88414202]
[1769386052385,0.151,2828.8,2827.6,1.32622099]
[1769386052773,0.88339222,2830.0,2827.8,4.14031796]
[1769386053101,0.88339222,2830.0,2827.6,1.32622099]
[1769386053102,0.151,2829.1,2827.6,1.32622099]
[1769386053300,1.03472147,2829.0,2827.6,1.32622099]
[1769386053469,1.03472147,2829.0,2827.3,4.37836827]
[1769386053470,1.03472147,2829.0,2827.4,0.88419205]
[1769386053683,1.03472147,2829.0,2827.3,0.002]
[1769386053684,0.151,2828.1,2827.3,0.002]
[1769386055176,0.151,2827.7,2827.0,0.002]
[1769386055500,1.03514202,2827.6,2825.9,0.002]
[1769386055697,1.03514202,2827.6,2826.0,0.43783683]
[1769386055877,0.151,2827.6,2826.3,0.8845471]
[1769386057111,0.151,2827.6,2826.2,0.88455808]
[1769386057308,1.03530649,2827.1,2825.9,0.002]
[1769386057480,0.88430649,2827.1,2825.9,0.002]
[1769386057686,0.151,2827.0,2825.9,0.002]
[1769386058899,0.88416061,2827.6,2826.0,5.26100761]
[1769386059107,0.151,2827.5,2826.0,5.26100761]
[1769386059303,0.60816961,2827.5,2826.1,0.8801578]
[1769386059708,0.60816961,2827.5,2826.1,1.76475234]
[1769386059709,0.88420456,2827.4,2826.1,1.76475234]
[1769386059914,0.88419555,2827.5,2826.1,1.76475234]
[1769386060215,1.03519555,2827.5,2826.1,1.76475234]
[1769386060816,0.151,2827.5,2826.1,1.76475234]
[1769386063000,1.03518407,2827.5,2826.1,1.76475234]
[1769386063213,1.03517891,2827.5,2826.2,0.96796022]
[1769386063721,0.151,2827.4,2826.2,0.96796022]
[1769386064017,0.151,2827.2,2826.0,0.88462263]
[1769386064223,0.88417891,2827.5,2825.9,3.54068948]
[1769386064224,0.151,2827.5,2826.2,0.88455869]
[1769386064431,0.151,2827.5,2826.1,3.53832]
[1769386064432,1.0351742,2827.5,2826.1,0.8845951]
[1769386064718,0.45718674,2827.4,2826.2,0.88457915]
[1769386065804,0.88423584,2827.3,2826.1,0.88016094]
[1769386066318,0.88423584,2827.3,2826.0,0.88461978]
[1769386066524,0.88423584,2827.3,2825.9,0.002]
[1769386066525,0.151,2827.2,2826.1,0.88660597]
[1769386066829,0.001,2827.2,2826.1,0.88660597]
[1769386067923,0.001,2827.2,2826.1,0.002]
[1769386069495,0.151,2826.9,2826.1,0.002]
[1769386071006,0.88436763,2826.9,2826.1,0.002]
[1769386071208,0.44216016,2826.9,2826.1,0.002]
[1769386072915,0.88439224,2826.8,2826.1,0.002]
[1769386073225,1.03539224,2826.8,2826.1,0.002]
[1769386073422,0.151,2826.7,2826.1,0.002]
[1769386075422,0.44216016,2826.9,2826.1,0.002]
[1769386075423,0.151,2826.8,2826.1,0.002]
[1769386076222,0.001,2827.2,2826.1,0.002]
[1769386076529,0.151,2827.1,2826.1,0.002]
[1769386076735,0.001,2827.2,2826.1,4.37836827]
[1769386076897,0.001,2827.2,2826.2,4.8142051]
[1769386077104,0.001,2827.2,2826.3,0.8845487]
[1769386077334,0.001,2827.2,2826.3,0.91993064]
[1769386078611,0.88376696,2828.8,2826.4,4.37636827]
[1769386078931,0.88376696,2828.8,2826.3,0.91993064]
[1769386078932,0.54039248,2828.7,2826.6,4.37636827]
[1769386079136,5.40398724,2828.6,2826.7,5.2607918]
[1769386079536,5.22733824,2828.6,2826.7,5.2607918]
[1769386079745,4.52015779,2828.5,2826.6,0.88443297]
[1769386081206,4.87425779,2831.3,2829.0,3.65570522]
[1769386081440,4.52015779,2831.3,2829.2,3.75582501]
[1769386081661,3.53117828,2832.0,2829.5,30.0]
[1769386081838,4.52015779,2831.9,2829.6,30.0]
[1769386082139,4.52015779,2831.9,2829.7,0.741]
[1769386082437,4.52015779,2831.7,2829.7,0.741]
[1769386082603,4.52015779,2831.7,2829.2,0.10011979]
[1769386082800,4.52015779,2831.6,2829.3,0.741]
[1769386083111,4.76544599,2831.4,2829.4,0.88357955]
[1769386083814,4.76544599,2831.4,2829.6,0.6]
[1769386084014,0.88292424,2831.5,2829.6,0.6]
[1769386084015,4.76544599,2831.2,2829.6,0.6]
[1769386084237,4.76544599,2831.2,2829.4,0.88357955]
[1769386085402,5.64849498,2831.1,2829.4,0.88357955]
[1769386087535,5.64849893,2831.1,2829.0,10.88370448]
[1769386087734,5.64849893,2831.1,2829.1,1.91800512]
[1769386087735,4.76544599,2830.9,2829.1,1.91800512]
[1769386088612,4.76544599,2830.9,2829.1,6.6794718]
[1769386088812,4.76544599,2830.9,2829.3,0.6]
[1769386089416,0.91805775,2831.0,2829.4,30.88357955]
[1769386089753,0.8830188,2831.2,2829.5,4.24178978]
[1769386090052,5.64846479,2831.2,2829.4,0.88357955]
[1769386091630,5.64846479,2831.2,2829.3,1.51893311]
[1769386093459,5.64846479,2831.2,2829.3,0.63534443]
[1769386093643,4.76544599,2830.9,2829.2,0.002]
[1769386093958,5.1383112,2831.0,2829.2,0.002]
[1769386093959,4.76544599,2830.7,2829.2,0.002]
[1769386095356,4.76544599,2830.4,2829.2,0.002]
[1769386095533,4.76544599,2830.2,2829.2,0.002]
[1769386097469,5.64879187,2830.2,2829.2,0.002]
[1769386099175,5.01130746,2829.5,2828.5,0.03535442]
[1769386099380,5.01130746,2830.0,2828.4,0.88387031]
[1769386099676,5.01130746,2829.8,2828.5,0.03535442]
[1769386099880,5.01130746,2829.8,2827.8,0.13547801]
[1769386100179,5.01130746,2829.6,2828.2,0.88395111]
[1769386100362,5.01130746,2829.6,2827.8,0.91437736]
[1769386100551,5.01130746,2829.6,2827.8,0.88406252]
[1769386100932,5.01130746,2829.6,2827.7,0.88409308]
[1769386101133,5.01130746,2829.6,2827.8,0.88406519]
[1769386101351,5.01130746,2829.6,2827.7,3.57177452]
[1769386101552,5.01130746,2829.6,2827.6,3.53645882]
[1769386101553,5.01130746,2829.4,2827.6,3.53645882]
[1769386101736,5.01130746,2829.2,2827.7,0.44559678]
[1769386102774,5.01130746,2829.2,2827.7,0.48096121]
[1769386102979,5.01130746,2829.2,2827.7,0.44559678]
[1769386103165,5.01130746,2829.2,2827.6,0.03536568]
[1769386103344,0.88341304,2830.0,2828.0,5.11820028]
[1769386103676,5.8947205,2830.0,2828.2,0.88395445]
[1769386103841,5.8947205,2830.0,2828.3,0.03535692]
[1769386105377,6.6347205,2830.0,2828.3,0.03535692]
[1769386105552,5.01130746,2829.9,2828.3,0.03535692]
[1769386105753,0.88348588,2829.7,2828.4,0.88389195]
[1769386106944,6.55825735,2829.8,2828.4,0.88389195]
[1769386108078,5.8944967,2830.7,2828.8,5.11820028]
[1769386108375,5.8944967,2830.7,2828.9,0.03534942]
[1769386109074,5.8944967,2830.7,2828.9,5.1535497]
[1769386109075,5.01130746,2830.7,2828.9,5.1535497]
[1769386109646,5.89449087,2830.7,2828.9,5.1535497]
[1769386109846,6.83718453,2830.7,2829.0,0.58935497]
[1769386110272,5.95400112,2830.7,2829.1,0.88367325]
[1769386112077,6.83717653,2830.7,2829.1,0.88367325]
[1769386112981,5.01130746,2830.6,2829.1,0.88367325]
[1769386113186,5.40773352,2831.4,2829.5,5.23022237]
[1769386113393,5.40773352,2831.4,2829.6,30.0]
[1769386113675,5.40773352,2831.4,2829.6,10.74]
[1769386113879,6.38996899,2831.4,2829.7,1.59702224]
[1769386114079,6.38996899,2831.4,2829.6,5.97022237]
[1769386114577,5.40773352,2831.8,2830.1,5.23022237]
[1769386114776,5.40773352,2831.8,2830.1,15.23022237]
[1769386114993,6.29056893,2831.8,2830.2,0.8833298]
[1769386115182,3.53073481,2832.3,2830.4,0.10011979]
[1769386115183,5.40773352,2832.3,2830.4,0.10011979]
[1769386115389,0.54077335,2832.2,2830.5,0.53303422]
[1769386116555,0.001,2831.2,2830.5,0.53303422]
[1769386116777,0.54077335,2832.2,2830.5,1.27303422]
[1769386117090,0.54077335,2832.2,2830.7,5.23022237]
[1769386117261,0.0196476,2832.5,2831.4,0.10011979]
[1769386117455,0.0196476,2832.5,2831.5,16.306]
[1769386117656,0.0196476,2832.5,2831.0,5.23022237]
[1769386117959,6.31000372,2832.5,2830.6,0.88320497]
[1769386118289,0.98404538,2832.4,2831.0,0.10011979]
[1769386118455,6.31000372,2832.5,2831.0,0.10011979]
[1769386118456,5.42738112,2832.5,2831.0,0.10011979]
[1769386118787,0.0196476,2832.5,2831.1,25.718]
[1769386118961,0.0196476,2832.5,2831.3,0.88298661]
[1769386119150,0.0196476,2832.5,2831.6,0.09534235]
[1769386119354,0.0196476,2832.5,2831.2,0.8829986]
[1769386119578,0.90227712,2832.5,2831.2,1.33452736]
[1769386119781,0.90227712,2832.5,2831.2,1.33454099]
[1769386119988,0.90227025,2832.5,2831.2,1.33454099]
[1769386120162,0.90227025,2832.5,2831.2,0.88301297]
[1769386120564,0.0196476,2832.5,2831.2,0.88301297]
[1769386120980,0.0196476,2832.5,2831.1,3.5321946]
[1769386121871,5.42738112,2832.5,2831.1,0.88304899]
[1769386122073,0.0196476,2832.5,2831.5,0.09534235]
[1769386123055,0.0196476,2832.5,2831.6,0.88289306]
[1769386123293,0.0196476,2832.5,2831.7,0.45098077]
[1769386123762,6.31000115,2832.5,2831.0,3.63243701]
[1769386123959,6.31000115,2832.5,2831.1,3.56748706]
[1769386123960,6.3099971,2832.5,2831.1,3.56748706]
[1769386124184,6.3099971,2832.5,2831.2,0.88300017]
[1769386124490,6.3099971,2832.5,2831.1,0.03532195]
[1769386124491,6.3099971,2832.5,2831.1,0.91835019]
[1769386124682,6.3099971,2832.5,2831.2,0.88299855]
[1769386125012,0.88267485,2832.3,2830.7,2.11807209]
[1769386125189,5.40773352,2832.2,2830.7,1.27023286]
[1769386125378,5.40773352,2832.2,2830.5,0.53303422]
[1769386125379,6.14773352,2832.2,2830.5,0.53303422]
[1769386125585,6.14773352,2832.2,2830.3,0.88328989]
[1769386125896,6.14773352,2832.2,2830.3,0.88327888]
[1769386126467,5.40773352,2832.0,2830.4,0.88326155]
[1769386126662,5.40773352,2832.0,2830.7,0.88317296]
[1769386126876,5.40773352,2832.0,2830.8,0.0353257]
[1769386127199,6.29051092,2832.0,2830.8,0.13066805]
[1769386127397,6.03678461,2831.9,2830.5,0.03532944]
[1769386127571,6.03678461,2831.9,2830.4,1.48324931]
[1769386127572,6.03678461,2831.9,2830.4,0.63533069]
[1769386127776,6.03678461,2831.9,2830.4,1.48324708]
[1769386128096,6.03678461,2831.9,2830.4,0.6]
[1769386128298,6.77678461,2831.9,2830.6,0.88317962]
[1769386128494,0.7659562,2831.8,2830.9,0.002]
[1769386129282,0.001,2832.3,2831.0,5.23022237]
[1769386129516,0.001,2832.3,2831.1,0.03532195]
[1769386130198,0.001,2832.3,2830.9,0.002]
[1769386130399,0.001,2832.3,2830.9,0.03732445]
[1769386131281,5.40873352,2832.3,2830.9,0.002]
[1769386131476,6.03687124,2832.2,2830.9,0.002]
[1769386131719,6.03687124,2832.2,2830.9,0.88510424]
[1769386131879,6.03687124,2832.2,2830.9,0.002]
[1769386133112,5.40773352,2832.0,2830.9,0.002]
[1769386134109,1.51184595,2832.2,2830.9,0.002]
[1769386134410,1.51184595,2832.2,2830.9,0.03732026]
[1769386134612,0.50435509,2832.1,2830.9,0.002]
[1769386134786,1.51185479,2832.2,2830.9,0.03732025]
[1769386135109,1.51184551,2832.2,2831.0,0.035319]
[1769386135498,5.40773352,2832.1,2831.0,0.035319]
[1769386135699,5.40773352,2832.1,2830.9,0.03731901]
[1769386136009,5.40773352,2832.1,2831.0,0.0353232]
[1769386136214,6.45286232,2832.1,2830.9,0.88509112]
[1769386136429,6.45286232,2832.1,2830.9,0.92041557]
[1769386136826,6.45286232,2832.1,2831.0,0.88307528]
[1769386137123,0.001,2832.3,2831.1,0.91835098]
[1769386138196,5.40873352,2832.3,2831.3,0.6]
[1769386138998,5.40873352,2832.3,2830.6,0.88320414]
[1769386139220,5.40773352,2832.1,2830.1,3.53340896]
[1769386139419,5.40773352,2832.1,2830.2,0.03533319]
[1769386139616,5.40773352,2831.9,2830.3,0.35687422]
[1769386139931,5.40773352,2831.9,2830.4,0.03533069]
[1769386141027,5.40773352,2831.9,2830.3,0.35687422]
[1769386141410,5.40773352,2831.7,2830.4,0.88326738]
[1769386141934,5.40773352,2831.7,2830.6,0.002]
[1769386142234,5.40773352,2831.5,2829.7,0.88347598]
[1769386142437,5.40773352,2831.5,2830.4,0.002]
[1769386142595,5.25773352,2831.5,2830.4,0.002]
[1769386143399,0.54077335,2831.6,2830.4,0.002]
[1769386143400,6.59546366,2831.6,2830.4,0.002]
[1769386143594,7.47837725,2831.6,2830.4,0.002]
[1769386143826,7.15567501,2831.5,2830.4,0.002]
[1769386145000,7.15567501,2831.5,2829.7,0.03533943]
[1769386145227,7.15567501,2831.5,2829.6,0.03533969]
[1769386145829,6.05469031,2831.3,2829.6,0.88351169]
[1769386146128,6.05469031,2831.3,2829.6,0.88351488]
[1769386146301,6.05469031,2831.1,2829.6,0.88351488]
[1769386146712,6.05469031,2831.1,2829.7,0.03533943]
[1769386147210,6.05469031,2831.1,2829.6,0.91885454]
[1769386148148,0.88308018,2831.0,2829.6,0.91885454]
[1769386148306,0.88295542,2831.4,2829.7,6.16944125]
[1769386148624,6.05469031,2831.5,2829.8,7.91360834]
[1769386148828,6.05469031,2831.5,2829.9,6.16944125]
[1769386149021,6.93761672,2831.5,2829.9,6.16944125]
[1769386149329,6.83761672,2831.5,2830.0,0.82316276]
[1769386149512,0.88285209,2831.8,2830.0,6.99260401]
[1769386149707,0.88285209,2831.8,2830.1,0.03533444]
[1769386149915,0.88285209,2831.8,2830.2,0.8833298]
[1769386149916,6.9375424,2831.8,2830.2,0.8833298]
[1769386150108,6.9375424,2831.8,2830.1,0.88334869]
[1769386150302,6.05469031,2831.6,2830.2,0.55580655]
[1769386151114,6.05469031,2831.6,2830.2,0.52047336]
[1769386151512,6.05469031,2831.6,2830.3,0.03533194]
[1769386152206,6.93758536,2831.6,2830.4,0.88326738]
[1769386152922,6.93758536,2831.6,2830.3,0.88329104]
[1769386153128,7.21369376,2831.5,2830.4,0.03533069]
[1769386153333,7.21369376,2831.5,2830.2,0.91864203]
[1769386153538,7.21369376,2831.5,2830.2,0.03533319]
[1769386153833,7.21369376,2831.5,2829.5,6.16944125]
[1769386154033,7.21369376,2831.5,2830.0,0.88337492]
[1769386154235,7.74730461,2831.4,2829.9,0.88342344]
[1769386154436,7.74730461,2831.4,2830.0,0.03533568]
[1769386154738,0.80965888,2831.4,2830.0,0.03533568]
[1769386155134,0.88290936,2831.6,2830.0,6.16944125]
[1769386155333,0.001,2831.4,2830.1,0.03533444]
[1769386155505,0.001,2831.4,2830.1,6.20477569]
[1769386155705,0.001,2832.0,2830.2,6.16944125]
[1769386155911,0.88236332,2833.3,2831.4,36.01476462]
[1769386156129,6.05469031,2833.4,2831.6,0.88289306]
[1769386156334,6.93702573,2833.4,2831.6,0.88289306]
[1769386156635,6.05469031,2833.4,2831.6,0.88289306]
[1769386156833,6.05469031,2833.4,2831.7,0.74]
[1769386157035,0.69370091,2833.3,2831.7,0.74]
[1769386157644,6.6124662,2833.3,2831.6,0.88289306]
[1769386157811,6.6124662,2833.3,2831.5,4.44764849]
[1769386158010,6.6124662,2833.3,2831.5,0.88290381]
[1769386158210,5.91876529,2833.1,2831.3,0.88298661]
[1769386159626,5.91876529,2833.1,2831.4,30.0]
[1769386159813,5.91876529,2833.1,2831.4,15.965]
[1769386160318,5.91876529,2833.1,2831.5,16.89768886]
[1769386160651,6.80084841,2834.2,2832.2,30.0]
[1769386160812,6.80084841,2834.2,2832.1,6.01476462]
[1769386161013,6.80084841,2834.2,2832.2,0.739]
[1769386161255,1.35258296,2834.3,2832.4,6.24833492]
[1769386161413,1.35258296,2834.3,2832.5,4.30374468]
[1769386161414,5.91876529,2834.2,2832.5,4.30374468]
[1769386161617,5.91876529,2834.2,2832.5,0.739]
[1769386162037,5.91876529,2834.2,2832.3,0.739]
[1769386162319,5.91876529,2834.0,2832.4,0.88264369]
[1769386162653,5.91876529,2834.0,2832.5,0.739]
[1769386162835,5.91876529,2834.2,2832.5,0.739]
[1769386163019,0.81534023,2834.1,2832.5,0.739]
[1769386163954,6.73410552,2834.1,2832.5,0.739]
[1769386164315,5.91876529,2833.9,2832.4,0.88262358]
[1769386164551,5.91876529,2833.9,2832.4,0.88263634]
[1769386164757,5.91876529,2833.9,2832.5,0.88260948]
[1769386164918,0.68009107,2833.8,2832.5,0.88260948]
[1769386165809,6.59885636,2833.8,2832.4,0.88263405]
[1769386166014,6.59885636,2833.8,2832.4,0.88262415]
[1769386166237,6.59885636,2833.8,2832.5,0.88261193]
[1769386166442,0.88223876,2833.7,2832.4,0.88263113]
[1769386166659,6.81540738,2833.6,2832.3,0.03530699]
[1769386166835,6.81540738,2833.6,2831.9,0.88277823]
[1769386167142,6.81540738,2833.6,2832.0,0.88276809]
[1769386167460,6.81540738,2833.6,2832.0,0.88276668]
[1769386167756,6.81540738,2833.6,2832.0,0.44493964]
[1769386167757,5.91876529,2833.4,2832.0,0.44493964]
[1769386167963,5.91876529,2833.4,2831.9,0.88279591]
[1769386168126,5.91876529,2833.4,2831.8,0.91812715]
[1769386168330,5.91876529,2833.4,2831.7,3.53144276]
[1769386168331,5.91876529,2833.4,2832.0,0.03531073]
[1769386168535,5.91876529,2833.4,2829.9,3.255]
[1769386168536,5.91876529,2832.4,2829.9,3.255]
[1769386168830,5.91876529,2831.4,2830.0,0.03533568]
[1769386169035,5.91876529,2831.4,2829.8,0.03733818]
[1769386169253,5.91876529,2832.1,2829.9,36.89818522]
[1769386169558,5.91876529,2832.4,2830.3,36.01476462]
[1769386169757,6.00506529,2832.2,2830.4,10.35383999]
[1769386169964,5.91876529,2832.2,2830.5,0.739]
[1769386170259,5.91876529,2832.2,2830.6,0.00772668]
[1769386170466,5.91876529,2832.2,2830.7,0.88317377]
[1769386170756,5.91876529,2832.2,2830.8,0.00772616]
[1769386171735,6.80149008,2832.2,2830.8,0.00772616]
[1769386172057,6.80147866,2832.2,2830.8,0.00772616]
[1769386172365,3.16197527,2834.3,2831.9,1.7259759]
[1769386172366,1.35258296,2834.3,2831.9,1.7259759]
[1769386172667,5.95707026,2834.5,2832.5,30.0]
[1769386172961,5.91876529,2834.8,2832.7,30.0]
[1769386173138,0.03830497,2834.7,2832.8,1.37659186]
[1769386173339,5.91876529,2834.8,2833.0,30.0]
[1769386173540,5.43616012,2836.0,2832.9,0.739]
[1769386173541,6.40342696,2835.9,2833.2,30.0]
[1769386173873,6.40342696,2835.9,2833.6,32.70032457]
[1769386174030,6.40342696,2835.9,2833.5,5.43616012]
[1769386174031,6.40342696,2836.4,2834.2,30.0]
[1769386174231,3.5235079,2838.1,2835.4,5.43616012]
[1769386174440,3.5235079,2838.1,2834.8,5.43616012]
[1769386174441,0.88093308,2837.9,2835.5,0.739]
[1769386174627,6.40342696,2837.8,2835.6,0.88164762]
[1769386174850,6.40342696,2837.6,2835.7,0.51473302]
[1769386175028,6.40342696,2837.6,2835.3,0.88172514]
[1769386175029,6.40342696,2837.6,2835.8,0.739]
[1769386175231,6.40342696,2837.6,2835.9,0.739]
[1769386175630,6.40342696,2837.6,2835.5,10.8816764]
[1769386175631,6.40342696,2837.6,2836.0,0.739]
[1769386175828,6.40342696,2837.6,2835.0,10.0]
[1769386176069,6.40342696,2837.6,2835.4,0.88169314]
[1769386176231,6.40342696,2837.4,2835.5,1.62066947]
[1769386176433,6.40342696,2837.4,2835.4,0.739]
[1769386176728,6.40342696,2837.2,2835.4,0.739]
[1769386177459,6.40342696,2837.2,2835.2,0.739]
[1769386177671,6.40342696,2837.0,2835.2,0.739]
[1769386177872,6.40342696,2836.8,2835.2,0.739]
[1769386178036,6.40342696,2836.8,2834.4,0.88200312]
[1769386178242,6.40342696,2836.8,2834.6,3.52782318]
[1769386178445,6.40342696,2836.8,2834.5,0.739]
[1769386178645,6.40342696,2836.6,2834.5,1.62098136]
[1769386178970,6.40342696,2836.4,2834.6,0.51490257]
[1769386179530,6.40342696,2836.4,2834.5,1.62098713]
[1769386180638,7.28485699,2836.3,2834.5,1.62098713]
[1769386181472,7.28485699,2836.3,2834.5,0.739]
[1769386182666,7.28485699,2836.3,2833.7,3.56474468]
[1769386182667,6.40342696,2836.1,2833.9,0.03528706]
[1769386182868,0.88143003,2836.3,2834.3,0.88204412]
[1769386182869,6.40342696,2835.9,2834.3,0.88204412]
[1769386183075,6.40342696,2835.9,2834.0,0.88214326]
[1769386183254,6.40342696,2835.9,2834.1,0.03527639]
[1769386183567,6.40342696,2835.7,2833.7,0.88222163]
[1769386183766,6.40342696,2835.7,2833.2,10.0]
[1769386183967,6.40342696,2835.7,2833.4,3.52921249]
[1769386184167,6.40342696,2835.7,2833.7,0.88221889]
[1769386184738,6.40342696,2835.5,2833.2,33.52945328]
[1769386184936,7.13193442,2835.4,2833.4,18.295]
[1769386185142,7.13193442,2835.4,2833.5,0.03529204]
[1769386186242,7.13193442,2835.4,2833.3,0.03529453]
[1769386186748,7.28516786,2835.3,2833.4,0.88233218]
[1769386186949,7.28516786,2835.3,2833.5,0.03529203]
[1769386187257,7.16047366,2835.2,2833.5,0.03529203]
[1769386188484,7.16047366,2835.2,2829.5,7.07007307]
[1769386188485,3.55151017,2832.7,2829.5,7.07007307]
[1769386188645,0.9176543,2833.3,2829.9,6.13914127]
[1769386188646,6.812565,2831.7,2829.9,6.13914127]
[1769386188849,0.637025,2830.7,2829.9,6.13914127]
[1769386189050,0.637025,2830.7,2829.9,6.7530554]
[1769386189288,0.637025,2830.7,2829.2,6.13914127]
[1769386189289,1.376025,2830.7,2829.2,6.13914127]
[1769386189497,0.637025,2830.7,2829.2,6.13914127]
[1769386189977,7.44959,2830.7,2829.2,6.13914127]
[1769386190385,0.637025,2830.7,2829.2,6.13914127]
[1769386190880,1.52022731,2830.7,2829.2,6.13914127]
[1769386191182,2.02551955,2830.7,2829.3,0.61391413]
[1769386191477,2.02551955,2830.7,2830.1,0.002]